[Event "45th FIDE Olympiad 2024"]
[Site "Budapest"]
[Date "2024.09.12"]
[Round "2.61"]
[White "Kulaots, Kaido"]
[Black "Predke, Alexandr"]
[Result "0-1"]
[ECO "C78"]
[WhiteElo "2506"]
[BlackElo "2671"]
[Annotator "TA"]
[PlyCount "124"]
[EventDate "2024.09.05"]
[EventType "team-tourn"]
[EventCountry "HUN"]
[SourceTitle "playchess.com"]
[Source "ChessBase"]
[SourceQuality "1"]
[WhiteTeam "Estonia"]
[BlackTeam "Serbia"]
[WhiteTeamCountry "EST"]
[BlackTeamCountry "SRB"]
[TimeControl "40/5400+30:1800+30"]

{[%evp 19,124,27,33,22,38,29,29,26,24,18,31,21,38,27,25,26,29,10,3,0,0,0,7,0,17,-27,0,-35,-39,-19,-16,-21,-21,-29,-14,-21,-23,-39,-47,-40,-24,-25,-35,-37,-25,-40,-25,-36,-41,-44,-41,-41,-40,-38,-41,-92,-79,-179,-125,-578,-536,-581,-575,-547,-144,-118,-91,-111,-64,-62,-55,-68,0,0,0,0,66,61,61,66,120,0,0,0,0,0,25,8,52,48,57,14,22,20,25,0,0,-345,-320,-29966,-29966,-29964,-29965,-29965,-29966,-12848,-5556]} 1. e4 {[%emt 0:00:01]} e5 {[%emt 0:01:34]} 2. Nf3 {[%emt 0:00:55]} Nc6 {[%emt 0:00:07]} 3. Bb5 {[%emt 0:01:04][%cal Bf1b5,Bb5a4,Ba4b3][%mdl 32]} a6 {[%emt 0:00:07]} 4. Ba4 {[%emt 0:00:02]} Nf6 {[%emt 0:00:06]} 5. O-O {[%emt 0:01:46]} b5 {[%emt 0:00:05]} 6. Bb3 {[%emt 0:00:04]} Bc5 {[%emt 0:00:05]} 7. a4 {[%emt 0:07:48]} Bb7 {[%emt 0:00:16]} 8. d3 {[%emt 0:01:55]} O-O {[%emt 0:00:08]} 9. Nc3 {[%emt 0:02:20]} Na5 {[%emt 0:00:27]} 10. axb5 {[%emt 0:10:02]} Nxb3 {[%emt 0:00:06]} 11. cxb3 {[%emt 0:00:07]} axb5 {[%emt 0:00:06]} 12. Rxa8 {[%emt 0:00:10]} Bxa8 {[%emt 0:00:02]} 13. Nxe5 {[%emt 0:01:08] White has an edge.} b4 {[%emt 0:02:30]} 14. Na4 {[%emt 0:02:26] A dynamic duo of knights.} Be7 {[%emt 0:00:16]} 15. Qc2 {[%emt 0:09:15]} Re8 {[%emt 0:11:09]} 16. Nf3 {[%emt 0:05:03]} d6 {[%emt 0:16:20]} 17. Bg5 {[%emt 0:08:46]} h6 {[%emt 0:05:19]} 18. Bh4 {[%emt 0:01:03]} c5 {[%emt 0:04:28] Repels Nd4} 19. h3 {[%emt 0:02:26]} Nh5 {[%emt 0:06:41]} 20. Bxe7 {[%emt 0:00:41]} Rxe7 {[%emt 0:00:02]} 21. Re1 {[%emt 0:06:11]} Nf4 {[%emt 0:08:18]} 22. Re3 {[%emt 0:10:56]} (22. Qd2 $5 Ne6 23. d4 $14) 22... Bb7 {[%emt 0:06:02]} 23. Kh2 {[%emt 0:05:26]} Ne6 {[%emt 0:06:46]} 24. Re1 {[%emt 0:10:45]} d5 {[%emt 0:05:57]} 25. Kg1 {[%emt 0:01:20]} dxe4 {[%emt 0:03:30]} 26. dxe4 {[%emt 0:00:12]} Rd7 {[%emt 0:00:03]} 27. Qc4 {[%emt 0:05:07]} (27. Nxc5 $2 Qc8 28. Ne5 Rc7 $19 (28... Qxc5 $2 29. Qxc5 Nxc5 30. Nxd7 $18)) 27... Qc7 {[%emt 0:03:01][%mdl 1024] Black has compensation.} 28. Qc1 {[%emt 0:03:06]} Rd3 {[%emt 0:08:46]} 29. Re3 {[%emt 0:00:57]} Rd8 {[%emt 0:05:23]} 30. Re1 {[%emt 0:00:25]} Rd7 {[%emt 0:02:25]} 31. Qc2 {[%emt 0:01:43]} Qd6 {[%emt 0:00:44]} 32. Qc1 {[%emt 0:00:48]} Ba6 {[%emt 0:01:35]} 33. Qe3 {[%emt 0:01:07]} Qc7 {[%emt 0:02:17]} 34. Qc1 {[%emt 0:00:56]} Rd3 {[%emt 0:01:22]} 35. Re3 {[%emt 0:00:29]} Rd8 {[%emt 0:00:20]} 36. Re1 {[%emt 0:00:26]} Bd3 {[%emt 0:00:35]} 37. Re3 {[%emt 0:01:29]} (37. Kh1 $15) 37... Bb5 $17 {[%emt 0:00:41] Strongly threatening ...c4.} 38. Re1 {[%emt 0:00:29] [#]} (38. Qc2 $17) 38... Rd3 {[%emt 0:01:14]} ({Black should try} 38... c4 $1 $19 39. e5 Rd3 (39... cxb3 40. Qxc7 Nxc7 41. Nc5 $11)) 39. Qc2 $2 {[%emt 0:00:30][%mdl 8192] [#]} (39. Re3 $17 {is more resistant.}) 39... Rxf3 $1 $19 {[%emt 0:00:33][%mdl 512]} 40. gxf3 {[%emt 0:00:13]} Nd4 {[%emt 0:00:09][%csl LRc2,LRf3]} 41. Qd1 {[%emt 0:00:55][%cal Of3f4]} Qf4 $2 {[%emt 0:14:56]} (41... Qd8 $19 {[%cal Ob5e2] White must now prevent ...Be2!} 42. f4 Be2) 42. Re3 $17 {[%emt 0:02:26]} Bd7 {[%emt 0:00:46]} 43. Kh1 {[%emt 0:12:12]} (43. Nxc5 $2 Bxh3 (43... Qg5+ 44. Kh2 $11) 44. Kh1 (44. Qxd4 $2 Qg5+ 45. Kh2 Qg2#) 44... Qg5 $19) 43... Qh4 {[%emt 0:01:41]} 44. f4 $1 {[%emt 0:05:33]} (44. Nxc5 $2 Bxh3 45. Nd3 (45. Qxd4 Bf1+ 46. Kg1 Qh3) 45... Bf1+ 46. Kg1 Be2 $19) 44... Qxf2 {[%emt 0:03:15]} 45. Qg1 $1 {[%emt 0:03:34]} Qc2 {[%emt 0:00:03] Black is much more active.} (45... Qxf4 $15 46. Qg3 (46. Nxc5 $2 Bc6 $19) 46... Qf1+ 47. Qg1 Qb5 (47... Bxh3 48. Qxf1 Bxf1 49. Kg1 $16) 48. Nxc5 Bc6 (48... Qxc5 49. Rd3 $15)) 46. Qg2 $11 {[%emt 0:04:25]} Qc1+ {[%emt 0:00:03]} 47. Qg1 {[%emt 0:00:05]} Qd2 {[%emt 0:00:08]} (47... Qc2 $11) 48. Nxc5 $14 {[%emt 0:00:53]} Bc6 {[%emt 0:01:51][%cal Od2c2] ...Qc2! would now be deadly.} 49. Rg3 {[%emt 0:03:23]} Ne6 {[%emt 0:05:14]} (49... Nf5 $1 $14 50. Rg2 Qd6) 50. f5 {[%emt 0:01:36]} (50. Rg2 $16 Qxf4 51. Nxe6 Qxe4 52. Nd4 (52. Nxg7 $2 Qxg2+ 53. Qxg2 Bxg2+ 54. Kxg2 Kxg7 $19)) 50... Ng5 $1 $11 {[%emt 0:00:11]} (50... Nxc5 51. Rxg7+ Kf8 52. Rg8+ (52. Qxc5+ Kxg7 53. Qxc6 Qe3 $11) 52... Ke7 53. Qxc5+ Kd7 54. Qa7+ Kd6 55. Rd8+ (55. Qxf7 Bxe4+ 56. Kg1 Qe1+ 57. Kh2 Qf2+) 55... Ke5 56. Qc7+ (56. Rxd2 Bxe4+ 57. Kg1 Kxf5 58. Qe7 Kf4 59. Qf6+ Kg3 60. Qd6+ Kxh3 61. Qf4 Bg2 62. Rd3+ Bf3 63. Rxf3#) 56... Kf6 57. Qxc6+ (57. Rxd2 Bxe4+ 58. Kh2 Bxf5 59. Qd6+ Be6 60. Rf2+ Kg7 61. Qe5+ Kh7 62. Rg2 Bg4 63. Rxg4 f6 64. Qe7+ Kh8 65. Qg7#)) 51. Rg4 {[%emt 0:00:49]} Qxb2 {[%emt 0:05:03]} 52. Qe3 {[%emt 0:00:28]} Qb1+ {[%emt 0:01:28]} 53. Kh2 {[%emt 0:00:27]} Qc2+ {[%emt 0:01:49]} 54. Rg2 {[%emt 0:00:27]} Qd1 {[%emt 0:00:18]} 55. h4 {[%emt 0:00:37]} Nf3+ {[%emt 0:00:14]} 56. Kg3 {[%emt 0:00:14]} Ne5 {[%emt 0:00:15] Wards off Nd3} 57. Qf4 {[%emt 0:00:46] Prevents h5} (57. Kf4 {with more complications.} f6 58. Ne6 g6 59. Nd4) 57... Qd4 {[%emt 0:00:39]} 58. Kh2 $2 {[%emt 0:00:32][%mdl 8192]} Qxc5 $19 {[%emt 0:00:29]} 59. Qxh6 {[%emt 0:00:21] [#]} (59. f6 $19 h5 (59... Ng6 $2 60. Qb8+ Kh7 61. Qc7 $19) 60. Rxg7+ Kf8 61. Rg5 (61. Qh6 $2 Ke8 $19) 61... Qc2+ 62. Rg2 Qxe4 63. Qxe4 Bxe4 64. Rb2) 59... Ng4+ $1 {[%emt 0:01:04][%mdl 512]} 60. Rxg4 {[%emt 0:00:12]} Qf2+ {[%emt 0:00:03]} 61. Kh3 {[%emt 0:00:28]} Qf3+ {[%emt 0:00:05]} 62. Kh2 {[%emt 0:00:04]} Qe2+ {[%emt 0:00:02] Weighted Error Value: White=0.43/Black=0.17 (very precise) .  Loses game:     	White=2     	---        Missed win:     	---       	Black=1      Mistake:       	White=4     	Black=4      Inaccurate:     	White=3     	Black=2      OK:         	White=17    	Black=22     Best:        	White=5     	Black=1      Strong:       	White=2     	Black=1      Brilliant:      	---       	Black=2} ({Weaker is} 62... Qxg4 63. Qxc6 Qe2+ (63... Qxh4+ 64. Kg2 $11) 64. Kg1 $17) 0-1

[Event "45th FIDE Olympiad 2024"]
[Site "Budapest"]
[Date "2024.09.12"]
[Round "2.61"]
[White "Gurner, Jem"]
[Black "Kabamwanishi, Mashala"]
[Result "1/2-1/2"]
[ECO "B53"]
[WhiteElo "2091"]
[BlackElo "1914"]
[Annotator "NA"]
[PlyCount "98"]
[EventDate "2024.09.05"]
[EventType "team-tourn"]
[EventCountry "HUN"]
[SourceTitle "playchess.com"]
[Source "ChessBase"]
[SourceQuality "1"]
[WhiteTeam "Jersey"]
[BlackTeam "Democratic Republic of the Congo"]
[TimeControl "40/5400+30:1800+30"]

1. e4 c5 2. Nf3 d6 3. d4 cxd4 4. Qxd4 Nc6 5. Bb5 Bd7 6. Bxc6 Bxc6 7. Nc3 Nf6 8. Bg5 Qb6 9. Qxb6 axb6 10. Bxf6 gxf6 11. Nd4 Rg8 12. g3 h5 13. O-O-O Rg5 14. b4 e6 15. Rhe1 Be7 16. Kb2 Kf8 17. a4 d5 18. f4 Rg4 19. b5 Bd7 20. exd5 e5 21. fxe5 fxe5 22. Rxe5 Bf6 23. Re4 Rc8 24. Rxg4 Bxg4 25. Rd3 Rc4 26. Nb3 Rxa4 27. Nd2 Rb4+ 28. Kc1 Bxc3 29. Rxc3 Rd4 30. Re3 Rxd5 31. c4 Rd4 32. Kc2 Be6 33. Kc3 Rg4 34. Re4 Rg5 35. Kd4 Rc5 36. Re5 Rxe5 37. Kxe5 Ke7 38. h4 Bh3 39. Ne4 Bf1 40. Kd4 Ke6 41. Nc3 Kf5 42. Nd5 Kg4 43. Ne3+ Kxg3 44. Nxf1+ Kxh4 45. Ke5 Kg4 46. Ne3+ Kf3 47. Nf5 Kg4 48. Kf6 Kf4 49. Nh4 Ke4 1/2-1/2

[Event "45th FIDE Olympiad 2024"]
[Site "Budapest"]
[Date "2024.09.12"]
[Round "2.62"]
[White "Indjic, Aleksandar"]
[Black "Volodin, Aleksandr"]
[Result "0-1"]
[ECO "E01"]
[WhiteElo "2611"]
[BlackElo "2457"]
[Annotator "RC"]
[PlyCount "187"]
[EventDate "2024.09.05"]
[EventType "team-tourn"]
[EventCountry "HUN"]
[SourceTitle "playchess.com"]
[Source "ChessBase"]
[SourceQuality "1"]
[WhiteTeam "Serbia"]
[BlackTeam "Estonia"]
[WhiteTeamCountry "SRB"]
[BlackTeamCountry "EST"]
[TimeControl "40/5400+30:1800+30"]

1. d4 {[%emt 0:01:03]} d5 {[%emt 0:00:09]} 2. c4 {[%emt 0:00:24]} e6 {[%emt 0:00:21]} 3. Nf3 {[%emt 0:00:09]} Nf6 {[%emt 0:00:15]} 4. Nc3 {[%emt 0:00:31]} c6 {[%emt 0:04:55]} 5. Qd3 {[%emt 0:00:57]} Nbd7 {[%emt 0:12:51]} 6. g3 {[%emt 0:00:18]} Bd6 {[%emt 0:08:12]} 7. Bg2 {[%emt 0:02:41]} O-O {[%emt 0:00:39]} 8. O-O {[%emt 0:00:26]} Qe7 {[%emt 0:07:43]} 9. e4 {[%emt 0:10:56]} dxe4 {[%emt 0:01:14]} 10. Nxe4 {[%emt 0:00:07]} Nxe4 {[%emt 0:00:29]} 11. Qxe4 {[%emt 0:00:07]} Re8 {[%emt 0:04:47]} 12. c5 {[%emt 0:06:18]} Bc7 {[%emt 0:00:20]} 13. Re1 {[%emt 0:00:06]} e5 {[%emt 0:05:47]} 14. Qc2 {[%emt 0:06:51]} Qf8 {[%emt 0:02:21]} 15. Bd2 {[%emt 0:08:35]} exd4 {[%emt 0:01:14]} 16. Rxe8 {[%emt 0:00:56]} Qxe8 {[%emt 0:00:04]} 17. Re1 {[%emt 0:01:33]} Qf8 {[%emt 0:02:08]} 18. Nxd4 {[%emt 0:02:33]} Nxc5 {[%emt 0:06:31]} 19. b4 {[%emt 0:18:27]} Ne6 {[%emt 0:01:58]} 20. Nf5 {[%emt 0:00:06]} Bd7 {[%emt 0:04:25]} 21. Qb2 {[%emt 0:05:04]} Re8 {[%emt 0:05:29]} 22. b5 {[%emt 0:00:13]} Bb6 {[%emt 0:02:13]} 23. bxc6 {[%emt 0:02:46]} Bxc6 {[%emt 0:04:34]} 24. Bxc6 {[%emt 0:01:11]} bxc6 {[%emt 0:02:30]} 25. Rc1 {[%emt 0:03:39]} Rc8 {[%emt 0:09:04]} 26. Rc4 {[%emt 0:07:11]} c5 {[%emt 0:02:29]} 27. a4 {[%emt 0:03:18]} h5 {[%emt 0:04:12]} 28. g4 {[%emt 0:09:21]} Bd8 {[%emt 0:01:27]} 29. gxh5 {[%emt 0:00:32]} Bf6 {[%emt 0:00:37]} 30. Qc2 {[%emt 0:04:20]} Nd4 {[%emt 0:01:32]} 31. Nxd4 {[%emt 0:00:06]} Bxd4 {[%emt 0:00:04]} 32. Qf5 {[%emt 0:01:49]} Qe8 {[%emt 0:02:39]} 33. Kg2 {[%emt 0:01:31]} Qc6+ {[%emt 0:00:43]} 34. Qf3 {[%emt 0:00:05]} Qa6 {[%emt 0:01:29]} 35. Qd3 {[%emt 0:01:19]} Qc6+ {[%emt 0:01:00]} 36. Qf3 {[%emt 0:00:05]} Qa6 {[%emt 0:00:07]} 37. Qd3 {[%emt 0:00:07]} Qe6 {[%emt 0:01:23]} 38. h6 {[%emt 0:03:03]} gxh6 {[%emt 0:00:25]} 39. Bf4 {[%emt 0:00:04]} Re8 {[%emt 0:01:03]} 40. Rc2 {[%emt 0:00:17]} Qd5+ {[%emt 0:00:31]} 41. Qf3 {[%emt 0:30:07]} Qf5 {[%emt 0:06:10]} 42. Rc1 {[%emt 0:00:00]} Re6 {[%emt 0:02:19]} 43. Bg3 {[%emt 0:00:00]} Qxf3+ {[%emt 0:01:53]} 44. Kxf3 {[%emt 0:00:00]} Ra6 {[%emt 0:01:25]} 45. Rc4 {[%emt 0:00:00]} Kh7 {[%emt 0:01:45]} 46. Ke4 {[%emt 0:00:00]} Kg6 {[%emt 0:00:50]} 47. Kd5 {[%emt 0:00:00]} Kg5 {[%emt 0:01:30]} 48. f3 {[%emt 0:00:00]} Rf6 {[%emt 0:01:49]} 49. Bb8 {[%emt 0:00:00]} a6 {[%emt 0:01:22]} 50. Ke4 {[%emt 0:00:00]} Re6+ {[%emt 0:01:09]} 51. Kd5 {[%emt 0:00:00]} Re3 {[%emt 0:03:15]} 52. f4+ {[%emt 0:00:00]} Kf5 {[%emt 0:00:38]} 53. a5 {[%emt 0:00:00]} Ra3 {[%emt 0:02:50]} 54. Bc7 {[%emt 0:00:00]} h5 {[%emt 0:03:38]} 55. Bb6 {[%emt 0:00:00]} h4 {[%emt 0:00:33]} 56. Kc6 {[%emt 0:00:00]} h3 {[%emt 0:01:36]} 57. Kb7 {[%emt 0:00:00]} Ra2 {[%emt 0:00:16]} 58. Bxc5 {[%emt 0:00:00]} Bxc5 {[%emt 0:00:13]} 59. Rxc5+ {[%emt 0:00:00]} Kxf4 {[%emt 0:00:17]} 60. Kxa6 {[%emt 0:00:00]} Rxh2 {[%emt 0:00:15]} 61. Rc7 {[%emt 0:00:00]} f5 {[%emt 0:00:35]} 62. Rh7 {[%emt 0:00:00]} Kg3 {[%emt 0:01:19]} 63. Rg7+ {[%emt 0:00:00]} Kf3 {[%emt 0:00:19]} 64. Rh7 {[%emt 0:00:00]} f4 {[%emt 0:00:45]} 65. Kb7 {[%emt 0:00:00]} Rb2+ {[%emt 0:00:31]} 66. Kc6 {[%emt 0:00:00]} Ra2 {[%emt 0:00:39]} 67. Kb6 {[%emt 0:00:00]} Kg2 {[%emt 0:03:12]} 68. Rg7+ {[%emt 0:00:00]} Kf2 {[%emt 0:01:55]} 69. Rh7 {[%emt 0:00:00]} Kg3 {[%emt 0:00:35]} 70. Rg7+ {[%emt 0:00:00]} Kf3 {[%emt 0:00:57]} 71. a6 {[%emt 0:00:00]} h2 {[%emt 0:00:16]} 72. Rh7 {[%emt 0:00:00]} Kg2 {[%emt 0:00:14]} 73. Rg7+ {[%emt 0:00:00]} Kf2 {[%emt 0:00:40]} 74. Rh7 {[%emt 0:00:00]} Kg1 {[%emt 0:00:51]} 75. Rg7+ {[%emt 0:00:00]} Kf1 {[%emt 0:00:55]} 76. Rh7 {[%emt 0:00:00]} f3 {[%emt 0:00:36]} 77. a7 {[%emt 0:00:00]} Kg2 {[%emt 0:00:29]} 78. Rg7+ {[%emt 0:00:00]} Kh3 {[%emt 0:00:28]} 79. Rh7+ {[%emt 0:00:00]} Kg3 {[%emt 0:00:05]} 80. Rg7+ {[%emt 0:00:00]} Kf4 {[%emt 0:00:09]} 81. Rf7+ {[%emt 0:00:00]} Ke5 {[%emt 0:01:05]} 82. Rh7 {[%emt 0:00:28]} f2 {[%emt 0:00:35]} 83. Rh5+ {[%emt 0:00:51]} Ke6 {[%emt 0:00:23]} 84. Rh6+ {[%emt 0:00:05]} Kf5 {[%emt 0:00:46]} 85. Rh5+ {[%emt 0:00:24]} Kf4 {[%emt 0:00:21]} 86. Rxh2 {[%emt 0:00:15]} f1=Q {[%emt 0:00:18]} 87. Rxa2 {[%emt 0:00:05]} Qb1+ {[%emt 0:00:02]} 88. Kc7 {[%emt 0:00:10]} Qxa2 {[%emt 0:00:07]} 89. Kb8 {[%emt 0:00:06]} Qb3+ {[%emt 0:00:10]} 90. Kc8 {[%emt 0:00:29]} Qc4+ {[%emt 0:00:34]} 91. Kb8 {[%emt 0:00:06]} Qb5+ {[%emt 0:00:15]} 92. Kc8 {[%emt 0:00:17]} Qc6+ {[%emt 0:00:29]} 93. Kb8 {[%emt 0:00:05]} Qb6+ {[%emt 0:00:13]} 94. Ka8 {[%emt 0:00:05]} 0-1

[Event "45th FIDE Olympiad 2024"]
[Site "Budapest"]
[Date "2024.09.12"]
[Round "2.63"]
[White "Seeman, Tarvo"]
[Black "Markus, Robert"]
[Result "1-0"]
[ECO "C41"]
[WhiteElo "2375"]
[BlackElo "2586"]
[Annotator "TA"]
[PlyCount "109"]
[EventDate "2024.09.05"]
[EventType "team-tourn"]
[EventCountry "HUN"]
[SourceTitle "playchess.com"]
[Source "ChessBase"]
[SourceQuality "1"]
[WhiteTeam "Estonia"]
[BlackTeam "Serbia"]
[WhiteTeamCountry "EST"]
[BlackTeamCountry "SRB"]
[TimeControl "40/5400+30:1800+30"]

{[%evp 24,109,-14,-33,18,10,33,27,42,26,33,29,42,18,36,0,10,0,98,0,0,0,0,0,0,-11,16,13,13,-33,-47,-37,-41,-43,23,-58,-57,-68,-9,-16,0,0,0,0,66,54,66,54,102,109,141,120,154,103,1064,1025,1625,618,1360,1727,1260,1822,1920,1620,5306,363,642,0,5522,5514,1479,1444,29960,29961,29962,29969,29969,29969,29981,29982,29982,29983,29983,29984,29984,29985,29985,29986]} 1. Nf3 {[%emt 0:00:05]} d6 {[%emt 0:00:08]} 2. d4 {[%emt 0:03:38]} Nf6 {[%emt 0:00:06]} 3. g3 {[%emt 0:02:28]} Nbd7 {[%emt 0:00:58]} 4. Nc3 {[%emt 0:01:43]} e5 {[%emt 0:00:55]} 5. e4 {[%emt 0:00:09]} c6 {[%emt 0:00:27]} 6. a4 {[%emt 0:00:31]} Be7 {[%emt 0:00:29]} 7. Bg2 {[%emt 0:00:10]} O-O {[%emt 0:00:07]} 8. O-O {[%emt 0:00:11]} b6 {[%emt 0:00:46]} 9. Be3 {[%emt 0:18:31] C41: Philidor Defence.} a6 {[%emt 0:04:08]} 10. Nd2 {[%emt 0:20:40]} Bb7 {[%emt 0:07:01]} 11. Nc4 $146 {[%emt 0:02:53]} ({Predecessor:} 11. f4 b5 12. h3 b4 13. Ne2 a5 14. g4 Ba6 15. Rf2 h6 16. Ng3 Re8 17. Qf3 exd4 18. Bxd4 {½-½ Onischuk,V (2637)-Kunin,V (2527) Riga Tal Memorial blitz 2019 (11)}) 11... Qc7 {[%emt 0:05:11]} 12. a5 {[%emt 0:06:26]} b5 {[%emt 0:01:22]} 13. Nb6 {[%emt 0:02:06]} Rad8 {[%emt 0:00:10]} (13... Nxb6 $15 14. axb6 Qc8) 14. d5 $11 {[%emt 0:01:44]} c5 {[%emt 0:02:05]} 15. Nxd7 {[%emt 0:00:55]} Nxd7 {[%emt 0:00:07]} 16. Qd2 {[%emt 0:07:43]} Nf6 {[%emt 0:07:10]} 17. h3 {[%emt 0:01:36]} Rfe8 {[%emt 0:04:50]} 18. Ne2 {[%emt 0:02:49]} Rb8 {[%emt 0:06:14]} 19. c3 {[%emt 0:08:36]} c4 {[%emt 0:02:16]} 20. f4 {[%emt 0:07:24]} exf4 {[%emt 0:06:21]} (20... Nd7 $11 {keeps the balance.}) 21. gxf4 {[%emt 0:01:28]} (21. Bb6 $1 $16 {[%cal Rb6c7]} Qc8 22. Qxf4 (22. gxf4 Bd8 $11)) 21... Nd7 $1 $11 {[%emt 0:00:13]} 22. Bd4 {[%emt 0:04:34]} Nc5 {[%emt 0:02:21]} 23. Qe3 {[%emt 0:00:24]} Nb3 {[%emt 0:08:54]} 24. Bb6 {[%emt 0:00:08]} Qd7 {[%emt 0:00:06]} 25. Rad1 {[%emt 0:00:23]} Bd8 {[%emt 0:11:07]} 26. Nd4 {[%emt 0:00:40]} (26. e5 $11) 26... Bxb6 $15 {[%emt 0:07:17]} 27. axb6 {[%emt 0:00:04]} Nxd4 {[%emt 0:00:07]} 28. Qxd4 {[%emt 0:00:29]} Bc8 {[%emt 0:01:33]} (28... Ba8 $15) 29. Rf3 {[%emt 0:03:34]} (29. e5 $1 $11) 29... Qd8 $15 {[%emt 0:01:48]} 30. Rg3 {[%emt 0:00:09]} g6 {[%emt 0:00:35]} (30... f6 $1 $15) 31. Kh2 $11 {[%emt 0:00:27]} Qxb6 {[%emt 0:00:12]} (31... Rxb6 {feels hotter.} 32. e5 Bf5 33. e6 b4) 32. Qd2 $1 {[%emt 0:00:43]} ({Don't play} 32. Qf6 a5 $15 (32... Qd8 33. Qxd8 Rxd8 34. b3 $15)) 32... f5 {[%emt 0:05:50]} 33. Re1 {[%emt 0:00:20]} b4 {[%emt 0:01:00]} (33... Qd8 $11) 34. e5 $14 {[%emt 0:01:05]} bxc3 {[%emt 0:04:26]} 35. bxc3 {[%emt 0:00:01]} Qc5 {[%emt 0:02:57]} (35... a5 $14) 36. h4 $16 {[%emt 0:01:13]} Re7 {[%emt 0:04:24]} 37. h5 {[%emt 0:00:29]} Rg7 {[%emt 0:00:06] [#]} 38. h6 {[%emt 0:01:42]} ({White should play} 38. e6 $1) 38... Rgb7 $2 {[%emt 0:00:17][%mdl 8192]} (38... Rf7 $16 39. Qe3 Qb6) 39. exd6 $18 {[%emt 0:00:56]} Rf7 {[%emt 0:03:50]} 40. Re8+ {[%emt 0:00:38]} Rf8 {[%emt 0:00:04]} 41. Rge3 {[%emt 0:07:26]} Rb7 {[%emt 0:05:13]} 42. R3e7 {[%emt 0:03:51]} ({Not} 42. Qd4 Qxd4 43. cxd4 Bd7 $16) 42... Rxe7 {[%emt 0:06:26]} 43. Rxe7 {[%emt 0:04:03]} Rf7 {[%emt 0:00:40]} 44. Re8+ {[%emt 0:05:34]} (44. Rc7 $142 Rxc7 45. dxc7) 44... Rf8 $18 {[%emt 0:00:06]} 45. Re7 {[%emt 0:00:01]} (45. Re6 $142 Bxe6 46. dxe6) 45... Rf7 $1 $18 {[%emt 0:00:08]} 46. Rc7 {[%emt 0:01:32]} Rxc7 {[%emt 0:02:01]} 47. dxc7 {[%emt 0:00:02]} Kf7 {[%emt 0:15:35] [#]} 48. d6 $1 {[%emt 0:03:59]} Ke6 {[%emt 0:00:12]} 49. Bb7 {[%emt 0:01:17]} Bd7 {[%emt 0:00:03]} 50. Bxa6 {[%emt 0:01:16]} g5 {[%emt 0:00:04]} 51. Qd4 {[%emt 0:02:08]} Qxd4 {[%emt 0:02:33]} 52. cxd4 {[%emt 0:00:08]} c3 {[%emt 0:00:02]} 53. c8=Q {[%emt 0:01:22]} Bxc8 {[%emt 0:00:04]} 54. Bxc8+ {[%emt 0:00:08]} Kf6 {[%emt 0:00:03]} 55. d7 {[%emt 0:00:30]} 1-0

[Event "45th FIDE Olympiad 2024"]
[Site "Budapest"]
[Date "2024.09.12"]
[Round "2.63"]
[White "Belzo, Krzysztof"]
[Black "Kasongo, Kazadi Olivier"]
[Result "1-0"]
[ECO "A25"]
[WhiteElo "2076"]
[BlackElo "1794"]
[Annotator "NA"]
[PlyCount "83"]
[EventDate "2024.09.05"]
[EventType "team-tourn"]
[EventCountry "HUN"]
[SourceTitle "playchess.com"]
[Source "ChessBase"]
[SourceQuality "1"]
[WhiteTeam "Jersey"]
[BlackTeam "Democratic Republic of the Congo"]
[TimeControl "40/5400+30:1800+30"]

1. c4 e5 2. Nc3 Nc6 3. g3 Bc5 4. Bg2 Nge7 5. e3 d6 6. Nge2 Bg4 7. a3 a6 8. b4 Bb6 9. Bb2 O-O 10. h3 Be6 11. Nd5 Bf5 12. d4 exd4 13. Nxb6 cxb6 14. Nxd4 Nxd4 15. Qxd4 f6 16. Bxb7 Ra7 17. Bg2 Qc7 18. O-O Bg6 19. Rfd1 Nc8 20. Rac1 a5 21. Bf3 h5 22. Qh4 axb4 23. axb4 Ra4 24. Bc3 Ne7 25. Bxh5 Kf7 26. Bxg6+ Nxg6 27. Qd4 Ke7 28. Qg4 Ne5 29. Bxe5 dxe5 30. Qxg7+ Rf7 31. Qg4 Rxb4 32. Rd5 Ra4 33. Rcd1 Ra7 34. Qg8 Rb7 35. Rd8 Ke6 36. Re8+ Qe7 37. Qg4+ f5 38. Qg6+ Rf6 39. Rxe7+ Rxe7 40. Rd6+ Kxd6 41. Qxf6+ Re6 42. Qxf5 1-0